Cogmind - Beta 15 @@@ ROGUE MODE // 2025.08.17 @ 19:22:12 Player: saltine Result: Destroyed by Architect with Modified Sigix Sheargun Performance ------------- Evolutions (9) 4500 Regions Visited (23) 4600 Robots Destroyed (419) 2095 Value Destroyed (26821) 26821 Prototype IDs (365) 7300 Alien Tech Used (13) 2600 Bonus (34824) 34824 TOTAL SCORE: 82740 Bonus ------- Triggered High Security 500 High Alert Combat Kills 5459 Follower Combat Kills 2742 Registered with UFD 300 Met Optimus in HQ 500 Met Zhirov 300 Built Enhanced Grunts 300 Met R17 at Cetus 500 Used Core Reset Matrix 3000 Met R17 at Research 2000 Scanned by Researcher 500 Destroyed MAIN.C Guards 500 Met MAIN.C 5000 Destroyed MAIN.C Shell 5000 Destroyed MAIN.C 10000 Met Architect 300 Destroyed A8 300 Destroyed A6 400 Destroyed A5 500 Destroyed A2 1000 Friendly Fire -4277 Cogmind --------- Core Integrity 0/1600 Matter 4/425 Energy 385/700 System Corruption 0% +Membrane Temperature Cool (0) +ITN Movement Core (50) Location -1/Access_0 Parts ------- > --- POWER (4) -------- (None) > --- PROPULSION (6) --- High-density Centrium Heavy Treads High-density Centrium Heavy Treads > --- UTILITY (12) ----- Experimental Energy Well Experimental Targeting Computer Experimental Targeting Computer Advanced Target Analyzer Experimental Core Analyzer Experimental Armor Integrity Analyzer Experimental Weapon Cycler > --- WEAPON (4) ------- (None) > --- INVENTORY (5) ---- Heavy Regenerative Plating Core Cannon Graviton Cannon Peak State ------------ > --- POWER ------------ Improved Quantum Reactor Zero-point Reactor Zero-point Reactor Zero-point Reactor > --- PROPULSION ------- Experimental Biometal Heavy Treads Experimental Biometal Heavy Treads Advanced Heavy Siege Treads > --- UTILITY ---------- Desublimator Huge Storage Unit Experimental Targeting Computer Advanced Target Analyzer Experimental Core Analyzer Experimental Armor Integrity Analyzer Precision Matter Filter Advanced Kinecellerator Heavy Regenerative Plating Graphene Brace AEGIS Remote Shield > --- WEAPON ----------- Cooled Nova Cannon Multirail Multirail Multirail > --- INVENTORY -------- Zero-point Reactor Zero-point Reactor Experimental Biometal Heavy Treads High-density Centrium Heavy Treads 2N-1CE's Frost Array Experimental Energy Well Experimental Energy Well Experimental Matter Compressor Experimental Matter Compressor Heavy Regenerative Plating AEGIS Remote Shield Long-range Tractor Beam Core Regenerator Integrity Redistributor Subatomic Replicator HERF Cannon Core Cannon Multirail Multirail Graviton Cannon [Rating: 271] Favorites ----------- Power Quantum Reactor Engine Ion Engine Power Core Neutrino Core Reactor Quantum Reactor Propulsion Centrium Heavy Treads Treads Centrium Heavy Treads Wheel Overtuned Huge Scrapsphere Utility Huge Storage Unit Device Graphene Brace Storage Huge Storage Unit Processor Advanced Signal Interpreter Hackware System Mapper Protection Medium Regenerative Plating Weapon Hypervelocity Coil Gun Energy Gun Overtuned Beamcaster Energy Cannon Enhanced Nova Cannon Ballistic Gun Hypervelocity Coil Gun Ballistic Cannon Hypercooled Linear Accelerator Launcher Compact Tesla Bomb Launcher Special Weapon Mining Laser Slashing Weapon Ripper Special Melee Weapon Advanced Datajack Build | -11 -10 -10 -7 -5 -5 -5 -5 -5 -5 -4 -4 -4 -4 -4 -4 -3 -3 -2 -2 -2 -1 -1 -1 ------- Run | Yrd Mat Sub Scr Fac Was Fac Upp Upp Zhi Pro Fac Ext Cet Arc Hub Res Tes Res Qua Sec Acc Com Ac0 Slots Evolved 18 | . . . . 10 . . . . . . 2 . . . . 2 . 2 . . 2 . . Power 2 | . . . . 1 . . . . . . . . . . . . . 1 . . . . . Propulsion 4 | . . . . 2 . . . . . . . . . . . 2 . . . . . . . Utility 10 | . . . . 5 . . . . . . 2 . . . . . . 1 . . 2 . . Weapon 2 | . . . . 2 . . . . . . . . . . . . . . . . . . . Parts Attached 247 | 7 7 13 7 27 8 6 2 1 7 1 9 8 13 10 . 7 11 7 32 21 2 27 14 Power 36 | 1 1 1 2 4 3 . . . 1 . . . 2 . . 1 1 2 4 6 . 5 2 Engine 5 | 1 1 1 1 1 . . . . . . . . . . . . . . . . . . . Core 4 | . . . 1 3 . . . . . . . . . . . . . . . . . . . Reactor 27 | . . . . . 3 . . . 1 . . . 2 . . 1 1 2 4 6 . 5 2 Propulsion 24 | 2 1 3 1 2 . . . . . . . . 2 2 . . . . 4 3 . 3 1 Treads 19 | 2 . 2 . . . . . . . . . . 2 2 . . . . 4 3 . 3 1 Leg . | . . . . . . . . . . . . . . . . . . . . . . . . Wheel 5 | . 1 1 1 2 . . . . . . . . . . . . . . . . . . . Hover . | . . . . . . . . . . . . . . . . . . . . . . . . Flight . | . . . . . . . . . . . . . . . . . . . . . . . . Utility 122 | 2 2 2 2 12 3 6 2 1 4 1 4 7 6 7 . 4 6 1 21 10 2 10 7 Device 67 | 1 . 1 1 6 2 4 1 . 3 . 2 6 . 6 . 3 4 . 14 7 . 4 2 Storage 12 | 1 2 . 1 . . 1 . . . . . . 1 . . . 1 . 1 . 1 2 1 Processor 12 | . . . . . 1 . 1 . . . 1 . . . . 1 1 1 1 1 . 2 2 Hackware 5 | . . . . 3 . 1 . . . . . . . . . . . . . . 1 . . Protection 26 | . . 1 . 3 . . . 1 1 1 1 1 5 1 . . . . 5 2 . 2 2 Artifact . | . . . . . . . . . . . . . . . . . . . . . . . . Weapon 65 | 2 3 7 2 9 2 . . . 2 . 5 1 3 1 . 2 4 4 3 2 . 9 4 Energy Gun 9 | 2 . 1 . 2 . . . . . . 1 1 . . . . 2 . . . . . . Energy Cannon 16 | . . 3 . 1 1 . . . . . . . . . . . 1 4 2 1 . 2 1 Ballistic Gun 17 | . . . . 4 . . . . . . 2 . 3 . . 2 1 . . . . 4 1 Ballistic Cannon 11 | . 2 3 . . . . . . . . . . . . . . . . 1 . . 3 2 Launcher 4 | . . . . 1 . . . . . . 2 . . . . . . . . 1 . . . Special Weapon 5 | . 1 . . 1 1 . . . 2 . . . . . . . . . . . . . . Impact Weapon . | . . . . . . . . . . . . . . . . . . . . . . . . Slashing Weapon 2 | . . . 2 . . . . . . . . . . . . . . . . . . . . Piercing Weapon . | . . . . . . . . . . . . . . . . . . . . . . . . Special Melee Weapon 1 | . . . . . . . . . . . . . . 1 . . . . . . . . . Unidentified Prototypes 34 | . . . . 1 1 1 . . 3 . 2 . 5 . . 2 6 . 4 5 . 3 1 Corrupted Parts 3 | . . . . . . . . . . . . . . 2 . . 1 . . . . . . System Corruption 6 | . . . . . . . . . . . . . . 2 . . 4 . . . . . . Parts Lost 36 | . 1 3 . 1 1 . . . . . 1 1 . . 1 . 2 1 . 2 . 1 21 Power 8 | . . 2 . 1 . . . . . . . . . . . . 1 . . 1 . . 3 Propulsion 6 | . 1 1 . . . . . . . . . . . . . . . . . . . . 4 Utility 11 | . . . . . 1 . . . . . 1 . . . . . . . . 1 . . 8 Weapon 11 | . . . . . . . . . . . . 1 . . 1 . 1 1 . . . 1 6 Highest Loss Streak 6 | . 1 1 . 1 1 . . . . . 1 1 . . 1 . 1 1 . 1 . 1 6 To Critical Strikes 1 | . . . . . . . . . . . . 1 . . . . . . . . . . . Average Backups 21 | 4 16 19 21 31 31 25 23 23 22 23 22 22 21 21 21 22 22 22 22 21 19 20 18 Power 1 | . 1 2 1 1 1 2 2 2 2 2 2 1 1 2 2 2 1 1 2 2 1 1 1 Propulsion 2 | 1 2 2 . 1 2 1 1 1 1 1 1 2 2 3 3 2 2 2 1 1 2 1 1 Utility 7 | . 2 2 11 16 16 14 13 13 12 12 8 8 8 7 8 9 12 11 8 6 5 4 8 Weapon 6 | 1 9 11 5 7 6 4 4 4 4 4 7 7 5 5 4 5 3 5 6 7 7 7 4 Tool/Special . | . . . . . . . . . . . . . . . . . . . . . . . . Unused Backups 82 | . . 2 12 10 1 5 1 3 3 . 3 1 7 . 1 6 6 5 5 1 . 8 2 Power 10 | . . . 1 1 . . . . 1 . . . 2 . . . 1 2 . 1 . 1 . Propulsion 5 | . . . 2 . . 1 . . . . . . 2 . . . . . . . . . . Utility 33 | . . . 3 3 . 2 1 2 2 . 1 1 2 . . 4 5 1 2 . . 3 1 Weapon 28 | . . 2 6 5 . 1 . . . . 2 . 1 . . 2 . 2 3 . . 4 . Tool/Special 6 | . . . . 1 1 1 . 1 . . . . . . 1 . . . . . . . 1 Average Slot Usage (%) 83 | . 99 99 51 73 72 79 82 82 70 82 77 77 85 88 88 85 84 85 85 83 82 83 80 Engine 2 | . 14 13 6 2 . . . . . . . . . . . . . . . . . . . Reactor 8 | . . . . . 4 11 11 11 11 11 10 10 10 10 9 9 9 13 13 13 15 15 14 Treads 10 | . 25 24 . . . . . . . . . . 8 10 10 14 14 13 12 12 11 10 10 Wheel 3 | . 1 3 13 11 11 11 11 11 11 11 10 10 1 . . . . . . . . . . Device 16 | . 13 11 4 11 16 20 21 22 22 20 20 14 15 20 17 18 18 16 18 17 13 18 14 Storage 7 | . 14 14 12 5 5 5 5 5 5 5 5 5 5 5 5 4 4 4 4 4 7 6 2 Processor 7 | . . . . . 3 . 4 5 5 5 5 10 10 10 10 9 9 13 13 12 11 11 16 Protection 5 | . . 2 . 7 . 5 . . . 1 5 4 11 9 12 9 9 8 6 4 3 3 4 Energy Gun 2 | . 11 3 . 4 10 11 11 11 6 11 9 5 . . . . . . . . . . . Energy Cannon 4 | . . 12 3 2 . . . . . . . . . . 1 2 3 6 15 16 14 4 . Ballistic Gun 9 | . . . . 7 9 11 11 11 . 11 10 13 20 20 18 15 14 9 1 . . 4 11 Ballistic Cannon 2 | . 15 6 3 . . . . . . . . . . . . . . . . . . 3 1 Peak Build Rating 271 | 7 11 16 33 96 106 103 108 109 113 113 123 121 152 152 154 178 187 216 219 238 259 269 271 Average Rating 144 | 5 9 11 21 78 97 102 107 108 92 111 121 117 143 151 151 172 180 207 216 222 249 259 253 On Entrance 126 | . 7 10 13 33 95 103 103 103 109 108 108 115 119 152 152 153 177 183 216 218 236 259 258 Naked Turns . | . . . . . . . . . . . . . . . . . . . . . . . . Heaviest Build 291 | 15 54 65 217 265 291 280 162 160 156 156 171 185 196 182 184 184 181 223 227 238 244 248 230 Greatest Support 260 | 40 40 40 28 48 40 40 40 40 40 40 40 40 160 160 160 240 240 240 250 260 255 255 260 Greatest Overweight (x) 81 | 3 5 5 7 13 7 6 4 3 3 3 4 4 4 58 1 . . . 1 . . 81 . Average Overweight (x) 2 | . 1 1 4 5 6 4 3 3 3 3 3 4 1 32 . . . . . . . . . Largest Inventory Capacity 35 | 8 20 20 35 35 35 35 25 25 25 25 25 25 25 25 25 25 25 25 25 25 25 25 25 Average Capacity 24 | 7 18 20 27 35 35 28 25 25 25 25 25 25 25 25 25 25 25 25 25 25 25 25 24 Most Carried 35 | 5 20 20 35 35 35 35 25 25 25 25 25 25 25 25 25 25 25 25 25 25 23 25 25 Average Carried 23 | 4 16 19 22 33 34 27 25 24 24 25 24 24 24 24 24 24 24 24 24 24 22 24 22 Final Capacity 35 | 8 20 20 35 35 35 25 25 25 25 25 25 25 25 25 25 25 25 25 25 25 25 25 5 Final Carried 35 | 5 20 20 35 35 35 25 25 25 25 25 25 25 25 25 23 25 25 25 25 23 23 25 5 Class Distribution -------------------- 23% | Commander-Tank 18% | Scavenger-Tank 18% | Scavenger-Gunner 17% | Mutant 12% | Scavenger-Scrapper 6% | Hauler-Mutant Dominant Class ---------------- Mutant | -10/Materials Mutant | -10/Subcaves Hauler-Mutant | -7/Scraptown Scavenger-Scrapper | -5/Factory Scavenger-Scrapper | -5/Waste Scavenger-Scrapper | -5/Factory Scavenger-Scrapper | -5/Upper Caves Scavenger-Scrapper | -5/Upper Caves Scavenger-Scrapper | -5/Zhirov Scavenger-Scrapper | -4/Proximity Caves Scavenger-Scrapper | -4/Factory Scavenger-Scrapper | -4/Extension Commander-Tank | -4/Cetus Commander-Tank | -4/Archives Scavenger-Tank | -4/Hub_04(d) Scavenger-Tank | -3/Research Scavenger-Tank | -3/Testing Scavenger-Tank | -2/Research Scavenger-Tank | -2/Quarantine Scavenger-Tank | -2/Section 7 Alien-Tank | -1/Access Scavenger-Gunner | -1/Command Scavenger-Gunner | -1/Access_0 Resources | -11 -10 -10 -7 -5 -5 -5 -5 -5 -5 -4 -4 -4 -4 -4 -4 -3 -3 -2 -2 -2 -1 -1 -1 ----------- Run | Yrd Mat Sub Scr Fac Was Fac Upp Upp Zhi Pro Fac Ext Cet Arc Hub Res Tes Res Qua Sec Acc Com Ac0 Matter Collected 18890 | 270 456 643 727 705 399 370 127 202 130 282 498 1121 576 520 1145 655 1905 647 1934 767 259 2121 2431 Remotely 4246 | . . . . . . . . . . . . 332 . . 563 . 624 184 . . . 1504 1039 Salvage Created 31291 | 207 539 746 . 949 1531 292 109 285 130 153 1313 2251 603 438 2623 1113 2351 1410 3158 4570 569 3662 2289 Parts 1524 | 22 45 48 . 51 28 11 2 6 12 8 57 100 42 45 133 54 161 68 193 175 27 120 116 Haulers Intercepted 17 | . 2 . . 1 . 1 . . . . 3 . . . 1 3 . 2 2 2 . . . Recyclers Shooed 6 | . . . . 1 . . . . . . 1 1 . . . . . . 1 . 2 . . Parts Field Recycled . | . . . . . . . . . . . . . . . . . . . . . . . . Retrieved Matter . | . . . . . . . . . . . . . . . . . . . . . . . . Parts Self-Destructed 58 | . . 3 . . . . 9 21 10 15 . . . . . . . . . . . . . Prevented 1 | . . . . . . . . 1 . . . . . . . . . . . . . . . Kills | -11 -10 -10 -7 -5 -5 -5 -5 -5 -5 -4 -4 -4 -4 -4 -4 -3 -3 -2 -2 -2 -1 -1 -1 ------- Run | Yrd Mat Sub Scr Fac Was Fac Upp Upp Zhi Pro Fac Ext Cet Arc Hub Res Tes Res Qua Sec Acc Com Ac0 Combat Hostiles Destroyed 312 | . 19 17 . 10 6 3 2 5 . 3 11 26 5 1 30 10 26 13 28 51 5 15 26 Guns 151 | . 8 . . 5 5 2 2 5 . 3 7 16 5 1 27 6 22 9 6 . . . 22 Cannons 96 | . 11 16 . 2 . . . . . . . . . . 1 . 3 3 8 34 5 11 2 AOE 24 | . . . . 2 . . . . . . 4 5 . . 2 4 . . 2 5 . . . Classes Destroyed 33 | 2 4 3 . 6 1 . 1 1 . . 1 1 . . 2 2 1 1 2 4 1 . . Worker 17 | . . . . 1 . . . . . . 2 1 . . 4 2 2 . 2 1 1 1 . Builder 14 | . . . . 1 . 1 . . . . 5 2 . . 1 . 1 . . 3 . . . Tunneler 9 | 7 . . . . . . . . . . . 1 . . . . . . . . 1 . . Hauler 17 | . 2 . . 1 . 1 . . . . 3 . . . 1 3 . 2 2 2 . . . Recycler 16 | 1 . . . . . . . . . . 2 4 . . . 1 3 . 2 1 . 2 . Carrier 1 | . . . . . . . . . . . . . . . . . . . . 1 . . . Mechanic 1 | . . . . . . . . . . . . . . . . . . . . . 1 . . Operator 17 | . 1 . . . . 1 . . . . 1 . . 9 . 1 2 . . 1 1 . . Watcher 7 | . . . . . . . . . . . 1 1 1 . . . . 1 2 . 1 . . Swarmer 43 | . 9 . . . . . 1 1 . . 4 9 . . 1 4 9 . . 5 . . . Saboteur 1 | . . . . . . . . . . . . 1 . . . . . . . . . . . Grunt 76 | . 10 . . 4 . . . 3 . . 2 7 . . 17 1 5 6 . 16 . 5 . Brawler 6 | . . . . 1 . . . . . . . 3 . . 1 . 1 . . . . . . Duelist 3 | . . . . . . . . . . . . . . . 1 . 1 . . 1 . . . Protector 3 | . . . . . . . . . . . . . . . 2 . . . . 1 . . . Researcher 3 | . . . . . . . . . . . . . . . . . 1 . 2 . . . . Sentry 18 | . . 1 . 1 . . . . . . 1 2 . 1 3 . . 2 . 5 1 1 . Demolisher 1 | . . . . . . . . . . . . . . . . 1 . . . . . . . Specialist 2 | . . . . . . . . . . . . . . . . . . . . 2 . . . Hunter 19 | . . . . 2 . . . . . . . . . . 4 . . . 9 2 2 . . Programmer 49 | . . . . 2 . 2 . . . 3 4 1 . . 1 1 9 4 5 12 2 3 . Heavy 2 | . . . . . . . . . . . . . . . . . . 1 . 1 . . . Q-Series 1 | . . . . . . . . . . . . . . . . . . . . 1 . . . Behemoth 3 | . . . . . . . 1 . . . . 2 . . . . . . . . . . . Compactor 6 | . . . . . 6 . . . . . . . . . . . . . . . . . . Cetus Guard 5 | . . . . . . . . . . . . . 5 . . . . . . . . . . Quarantine Guard 12 | . . . . . . . . . . . . . . . . . . . 12 . . . . S7 Guard 3 | . . . . . . . . . . . . . . . . . . . . 3 . . . M Guard 2 | . . . . . . . . . . . . . . . . . . . . . . 2 . Enhanced Grunt 15 | . . . . . . . . . . . . . . . . . . . . . . . 15 Enhanced Sentry 1 | . . . . . . . . . . . . . . . . . . . . . . . 1 Enhanced Hunter 6 | . . . . . . . . . . . . . . . . . . . . . . . 6 Combat Programmer 2 | . . . . . . . . . . . . . . . . . . . . . . 2 . Striker 3 | . . . . . . . . . . . . . . . . 3 . . . . . . . Executioner 2 | . . . . . . . . . . . . . . . . . . . . 2 . . . Alpha 7 1 | . . . . . . . . . . . . . . . . . . . 1 . . . . Fortress 1 | . . . . . . . . . . . . . . . . . . . 1 . . . . Protovariant L 2 | . . . . . . . . . . . . . . . . . 2 . . . . . . Artisan 1 | . . 1 . . . . . . . . . . . . . . . . . . . . . Subdweller 16 | . . 16 . . . . . . . . . . . . . . . . . . . . . Scrapoid 2 | . . . . 2 . . . . . . . . . . . . . . . . . . . Wasp 1 | . . . . . . 1 . . . . . . . . . . . . . . . . . Thug 2 | . . . . . . . . . . . . 1 1 . . . . . . . . . . Mutant 1 | . . . . . . . . 1 . . . . . . . . . . . . . . . Best Kill Streak 17 | 2 7 2 . 6 3 4 1 2 . 2 9 8 3 2 17 5 6 6 5 7 5 8 3 Combat Bots Only 15 | . 5 2 . 4 3 3 1 2 . 2 5 6 3 1 15 4 6 6 4 6 2 6 3 Max Kills in Single Turn 4 | 1 1 1 . 2 1 2 1 2 . 1 3 4 2 1 3 3 2 1 3 3 2 2 1 Gunslinging 1 | . . . . . . . . . . . . . 1 . 1 . 1 . . . . . . Exploded 3 | . . . . 1 . . . . . . 3 2 . . 2 2 . . 1 3 . . . Melee . | . . . . . . . . . . . . . . . . . . . . . . . . Uniques/NPCs Destroyed 7 | . . . . . . . . . . . . . 1 . . . . . . . . 2 4 A7 (-4/Cetus) MAIN.C Shell (-1/Command) MAIN.C (-1/Command) A8 (-1/Access_0) A6 (-1/Access_0) A5 (-1/Access_0) A2 (-1/Access_0) Combat | -11 -10 -10 -7 -5 -5 -5 -5 -5 -5 -4 -4 -4 -4 -4 -4 -3 -3 -2 -2 -2 -1 -1 -1 -------- Run | Yrd Mat Sub Scr Fac Was Fac Upp Upp Zhi Pro Fac Ext Cet Arc Hub Res Tes Res Qua Sec Acc Com Ac0 Hostile Shots Fired 2710 | . 94 58 . 63 1 4 . 12 . 11 35 50 6 . 188 34 145 31 117 464 39 260 1098 Missed 757 | . 23 15 . 14 . . . 4 . 1 8 11 1 . 43 7 35 13 26 177 10 37 332 Intercepted 24 | . . . . . . . . . . . . . . . . 1 . . . 9 . 14 . Hits 1953 | . 71 43 . 49 1 4 . 8 . 10 27 39 5 . 145 27 110 18 91 287 29 223 766 Melee 22 | . . . . . 1 . . . . . . . . . 5 . 4 . . 3 . . 9 Projectile 1931 | . 71 43 . 49 . 4 . 8 . 10 27 39 5 . 140 27 106 18 91 284 29 223 757 AOE 17 | . . 2 . . . . . . . . . . . . . 1 . . . 6 . 8 . Critical Strikes 107 | . . . . . 1 . . 1 . 1 1 2 . . 11 . 7 1 9 12 . 9 52 Actively Blocked 101 | . . . . . . . . . . . . 1 . . 11 . 7 1 9 12 . 9 51 Part Disruptions 20 | . . . . 1 . . . . . . . . . . . . 1 . . 1 . 13 4 Actively Blocked 2 | . . . . . . . . . . . . . . . . . . . . . . . 2 Damage Taken 30355 | . 676 973 . 895 57 83 33 184 . 207 568 867 69 . 1892 373 1472 378 1403 3423 210 3819 12773 Core 2799 | . 108 104 . . . 20 . 20 . 43 110 111 . . 116 10 58 . 72 207 8 126 1686 Absorbed by Shields 22726 | . . . . . . . . . . . . 281 73 . 938 320 1063 369 1368 2879 202 3720 11513 Reduced by Siege Mode 809 | . . . . . . . . . . . . . . . 66 . . 4 35 123 . 312 269 Redirected to Shielding 306 | . . . . . . . . . . . . . . . . . . . . . . . 306 Ignored by Resistances 664 | . . . . . . . . . . . . . . . . . . . . . 7 463 194 Regen/Repaired (Parts) 9011 | . . . . . 268 22 . 57 58 67 . 120 111 . 227 53 129 18 209 2525 91 1381 3675 Core Remaining (%) 70 | 100 . . 15 . . . . . . 91 . . . . 70 . 94 . . 52 . . . Volleys Fired 1471 | 33 68 130 . 46 34 14 20 22 11 8 75 83 19 17 71 56 106 44 130 163 25 113 183 Largest 4 | 1 2 2 . 4 4 4 4 4 2 4 4 4 4 4 4 4 4 4 4 4 4 4 4 Hottest 480 | 50 100 180 . 290 264 264 264 264 70 264 264 264 140 140 195 140 214 480 480 480 480 480 300 Shots Fired 3568 | 33 121 158 . 86 116 40 41 60 22 32 159 187 74 68 217 111 255 97 239 427 67 307 651 Gun 2050 | 33 47 13 . 65 116 40 41 60 11 32 157 147 74 68 195 74 191 53 62 . . 51 520 Cannon 1391 | . 71 110 . 15 . . . . . . . . . . 22 34 64 44 168 425 67 240 131 Launcher 45 | . . . . 4 . . . . . . 2 9 . . . 3 . . 9 2 . 16 . Special 82 | . 3 35 . 2 . . . . 11 . . 31 . . . . . . . . . . . Kinetic 1894 | . 71 52 . 37 52 20 12 30 . 16 66 107 74 68 195 74 191 53 62 . . 116 598 Thermal 1550 | 33 23 98 . 43 64 20 29 30 22 16 91 71 . . 22 34 56 44 157 406 67 175 49 Explosive . | . . . . . . . . . . . . . . . . . . . . . . . . Electromagnetic 122 | . 27 8 . 4 . . . . . . 2 9 . . . 3 8 . 20 21 . 16 4 Robot Hit Streak 47 | 9 18 12 . 13 10 7 5 7 24 25 17 9 5 8 17 19 11 18 38 47 8 41 23 Robot Miss Streak 10 | 2 4 2 . 3 2 7 3 3 . 4 6 10 4 2 3 3 4 1 5 4 3 2 7 Penetration Max 3 | . . . . 1 . 1 . . . 1 2 2 1 1 3 1 1 1 . . . . 1 Secondary Targets 41 | . 2 . . 4 . . . . . 1 1 2 2 . 6 1 6 2 . . . . 14 Max Gunslinging Chain 1 | . 1 . . 1 . . . . . 1 1 1 1 . 1 1 1 1 . . . . 1 Shots Hit Robots 2172 | 25 70 65 . 49 73 21 18 30 22 17 65 94 40 44 131 47 133 53 124 233 34 212 572 Core Hits 1270 | 9 28 21 . 24 15 7 5 13 4 4 42 71 15 31 83 29 70 27 67 96 13 105 491 Critical Kills 134 | . . 1 . 1 1 . . . . . 1 3 7 10 32 8 28 10 10 11 1 2 8 Critical Parts Destroyed 136 | . . . . 4 . . . . . . 5 3 7 6 29 6 37 7 7 . . . 25 Critical Strikes 345 | 4 2 1 . 7 12 2 1 3 . 1 9 16 17 17 63 15 65 19 21 12 1 3 54 Burn 30 | 4 . . . 1 9 2 . 3 . 1 3 7 . . . . . . . . . . . Meltdown 20 | . . 1 . . . . . . . . . . . . . . . . 4 11 1 2 1 Destroy 287 | . . . . 5 3 . 1 . . . 6 9 17 17 63 15 65 19 17 . . . 50 Blast 6 | . 2 . . . . . . . . . . . . . . . . . . . . 1 3 Corrupt 1 | . . . . . . . . . . . . . . . . . . . . 1 . . . Sever 1 | . . . . 1 . . . . . . . . . . . . . . . . . . . Melee Attacks 8 | . . . . 8 . . . . . . . . . . . . . . . . . . . Impact . | . . . . . . . . . . . . . . . . . . . . . . . . Slashing 8 | . . . . 8 . . . . . . . . . . . . . . . . . . . Piercing . | . . . . . . . . . . . . . . . . . . . . . . . . Sneak Attacks 3 | . . . . 3 . . . . . . . . . . . . . . . . . . . Combat Hostiles . | . . . . . . . . . . . . . . . . . . . . . . . . Follow-up Attacks . | . . . . . . . . . . . . . . . . . . . . . . . . Damage Inflicted 68447 | 316 1206 1471 . 1826 2410 755 466 898 264 596 2432 3928 394 378 1526 1343 1900 1179 4323 10437 1726 10420 18253 Guns 33252 | 313 443 63 . 1098 2410 755 466 898 174 596 2208 2678 394 378 1243 805 1393 353 328 . . 1767 14489 Cannons 30091 | . 691 1384 . 127 . . . . . . . . . . 72 35 386 826 3042 10028 1564 8172 3764 Explosions 4024 | . 45 . . 287 . . . . . . 224 1105 . . 206 465 . . 840 371 . 481 . Melee 314 | . . . . 314 . . . . . . . . . . . . . . . . . . . Ramming 489 | 3 3 . . . . . . . . . . 6 . . 5 38 121 . 113 38 162 . . Kinetic 35068 | . 691 322 . 845 1158 469 171 573 . 358 1431 2039 394 378 1243 805 1393 353 328 . . 5003 17114 Thermal 27852 | 313 256 1125 . 380 1252 286 295 325 264 238 777 971 . . 278 220 159 826 2664 9717 1564 4936 1006 Explosive 392 | . . . . 81 . . . . . . . . . . . . . . 175 136 . . . Electromagnetic 4332 | . 256 24 . 206 . . . . . . 224 912 . . . 280 227 . 1043 546 . 481 133 Impact . | . . . . . . . . . . . . . . . . . . . . . . . . Slashing 314 | . . . . 314 . . . . . . . . . . . . . . . . . . . Piercing . | . . . . . . . . . . . . . . . . . . . . . . . . Highest Corruption 12 | . . . . . . 1 1 1 1 1 1 1 1 2 2 . 9 . 12 12 . . . Average Corruption 5 | . . . . . . 1 1 1 1 1 1 1 1 1 1 . 3 . 11 12 . . . Corruption Purged 3 | . . . . . . . . . . . . . . 3 . . . . . . . . . Corruption Blocked . | . . . . . . . . . . . . . . . . . . . . . . . . Effects 203 | . . . . . . . 6 6 1 5 . 9 8 . 3 . 27 . 119 19 . . . Message Errors 48 | . . . . . . . 2 2 . . . 1 2 . 1 . 5 . 31 4 . . . Matter Fused 41 | . . . . . . . 2 . . 4 . 3 . . . . 8 . 21 3 . . . Heat Flow Errors 28 | . . . . . . . . 2 . . . 1 2 . . . 5 . 14 4 . . . Energy Discharges 23 | . . . . . . . . . . . . . . . . . 4 . 16 3 . . . Parts Fused 1 | . . . . . . . . . . . . . . . 1 . . . . . . . . Data Loss (minor) 23 | . . . . . . . 2 1 . 1 . . . . . . 1 . 16 2 . . . Data Loss (major) 9 | . . . . . . . . . . . . . 1 . . . 1 . 6 1 . . . Misfires 10 | . . . . . . . . 1 . . . 3 . . . . . . 6 . . . . Alerts 10 | . . . . . . . . . 1 . . . 1 . . . 1 . 6 1 . . . Weapon Failures 10 | . . . . . . . . . . . . 1 2 . 1 . 2 . 3 1 . . . Overload Shots 2 | . . . . . . . . . . . . . . . . . . . . . . 1 1 Overflow Damage 735 | . 5 . . 26 . . . . . . . 5 . . . 52 50 . 119 290 92 73 23 Projectiles 489 | . 5 . . . . . . . . . . . . . . . . . 116 224 48 73 23 Explosions 121 | . . . . 26 . . . . . . . 5 . . . 24 . . . 66 . . . Melee 125 | . . . . . . . . . . . . . . . . 28 50 . 3 . 44 . . Knockbacks 46 | . 5 2 . . . . . . . . . . . . . . . . 1 1 2 10 25 Impact 4 | . . . . . . . . . . . . . . . . . . . 1 1 2 . . Kinetic 42 | . 5 2 . . . . . . . . . . . . . . . . . . . 10 25 Secondary . | . . . . . . . . . . . . . . . . . . . . . . . . Self-Inflicted Damage 265 | . . . . 64 . . . . . . . 102 . . 86 . . . 13 . . . . Shots 6 | . . . . 1 . . . . . . . 1 . . 1 . . . 3 . . . . Rammed 19 | 2 1 . . . . . . . . . . 1 . . 1 1 3 . 2 3 5 . . Targets Rammed 21 | 2 1 . . . . . . . . . . 1 . . 1 1 4 . 2 3 6 . . Kicked . | . . . . . . . . . . . . . . . . . . . . . . . . Crushed 2 | . . . . . . . . . . . . . . . . . 1 . . . 1 . . Highest Temperature 492 | 90 234 360 . 492 362 360 372 410 . 441 420 456 183 . 8 . 211 214 282 196 . . 148 Average Temperature 96 | 29 60 95 . 130 129 143 112 130 . 188 103 153 100 . 5 . 99 77 87 56 . . 148 Received Heat Transfer 2015 | . 201 228 . 72 . . 12 45 . . 60 135 . . 273 27 125 16 32 314 . 224 251 Effects 13 | . 2 . . . 4 . . . . . 2 5 . . . . . . . . . . . Shutdowns 3 | . . . . . 1 . . . . . 1 1 . . . . . . . . . . . Energy Bleed 3 | . 1 . . . . . . . . . . 2 . . . . . . . . . . . Interference 4 | . 1 . . . 3 . . . . . . . . . . . . . . . . . . Matter Decay 1 | . . . . . . . . . . . . 1 . . . . . . . . . . . Short Circuit 1 | . . . . . . . . . . . 1 . . . . . . . . . . . . Damage (minor) 1 | . . . . . . . . . . . . 1 . . . . . . . . . . . Siege Activations 24 | . . . . . . . . . . . . . . . 2 . . 2 5 6 1 2 6 Total Turns 478 | . . . . . . . . . . . . . . . 57 . . 22 43 123 12 126 95 Longest Duration 105 | . . . . . . . . . . . . . . . 34 . . 20 19 65 12 105 26 Martial Activations . | . . . . . . . . . . . . . . . . . . . . . . . . Shielding Activations . | . . . . . . . . . . . . . . . . . . . . . . . . Robots Disrupted 4 | . . . . . . . . . . . . 1 . . . . 1 . 1 1 . . . Combat Hostiles 3 | . . . . . . . . . . . . . . . . . 1 . 1 1 . . . Robots Corrupted 24 | . . . . 1 . . . . . . . 5 . . . 1 1 . 8 3 . 4 1 Combat Hostiles 22 | . . . . 1 . . . . . . . 5 . . . . 1 . 7 3 . 4 1 Parts Fried 67 | . . . . 3 . . . . . . . 8 . . . 4 8 . 21 4 . 11 8 Impact Corruptions 6 | . . . . . . . . . . . . . . . . 1 3 . 1 . 1 . . Robots Melted 24 | . . 1 . . 1 1 . . . . . . . . . . . 1 5 11 1 2 1 Combat Hostiles 21 | . . 1 . . 1 1 . . . . . . . . . . . 1 5 9 . 2 1 Parts Melted 101 | 3 . 1 . 1 2 1 1 1 . 4 5 6 . . 1 . . 4 12 54 2 1 2 Heat Transferred 29949 | 1221 655 1604 . 750 3150 650 500 850 682 450 1650 2538 . . 150 100 . 703 2488 7856 1332 2244 376 Parts Sabotaged . | . . . . . . . . . . . . . . . . . . . . . . . . Parts Stolen . | . . . . . . . . . . . . . . . . . . . . . . . . Parts Stripped . | . . . . . . . . . . . . . . . . . . . . . . . . Power Chain Reactions 10 | . 1 . . 2 . . . . . . . 4 . . 1 1 . . . 1 . . . Alert | -11 -10 -10 -7 -5 -5 -5 -5 -5 -5 -4 -4 -4 -4 -4 -4 -3 -3 -2 -2 -2 -1 -1 -1 ------- Run | Yrd Mat Sub Scr Fac Was Fac Upp Upp Zhi Pro Fac Ext Cet Arc Hub Res Tes Res Qua Sec Acc Com Ac0 Maximum Alert Level 5 | . 1 . . 2 . 2 . . . . 1 3 2 1 3 2 2 1 2 5 4 4 . Low Security (%) 47 | 100 92 . . 61 100 87 . . . . 96 42 . 96 24 . 34 13 16 . . . . Level 1 10 | . 7 . . 35 . 6 . . . . 3 8 . 3 2 63 31 86 10 15 . . . Level 2 12 | . . . . 3 . 6 . . . . . 19 100 . 8 36 34 . 72 17 . . . Level 3 6 | . . . . . . . . . . . . 28 . . 64 . . . . 30 54 6 . Level 4 22 | . . . . . . . . . . . . . . . . . . . . 26 45 93 . Level 5 . | . . . . . . . . . . . . . . . . . . . . . . . . High Security . | . . . . . . . . . . . . . . . . . . . . 8 . . . Max Security . | . . . . . . . . . . . . . . . . . . . . . . . . Peak Influence 1715 | 10 269 . . 441 149 416 . . . . 232 985 693 339 983 515 585 362 556 1715 1218 1060 . Initial 1100 | . . . . . 149 . . . . . 46 107 518 209 . 490 163 320 184 272 1100 774 . Average 247 | 1 101 . . 169 20 101 . . . . 78 437 604 14 589 351 288 283 399 951 1099 964 . Influence Increases 14561 | 40 638 20 . 740 38 993 511 280 7 240 582 1530 339 252 1475 390 1024 428 1317 2099 308 879 431 Destroy 0b10 Robot/C 6680 | . 380 20 . 320 . 320 240 160 . 140 260 780 160 80 700 200 640 260 600 1020 100 300 . Destroy 0b10 Robot/NC 600 | 40 15 . . 30 . 35 . . 5 . 70 65 10 45 40 35 40 15 40 45 25 45 . Destroy Leader 1220 | . 74 . . 74 . 84 20 10 . 30 68 74 . . 130 36 90 66 188 214 22 40 . Allied During Kill 1843 | . . . . 58 . 431 251 110 2 70 11 343 165 125 229 . 48 . . . . . . Successful Hack 276 | . 89 . . . . 26 . . . . . 30 . . . . . 12 33 66 10 10 . Disable Machine 1035 | . 30 . . 90 . 45 . . . . 30 45 . . 105 15 60 . 180 255 15 75 90 Anti-Garrison Action 200 | . . . . . . . . . . . . . . . 150 . . . . . . 50 . Destroy Structure 2287 | . 20 . . 138 38 52 . . . . 128 148 4 2 106 74 86 60 261 379 121 329 341 Partial Spotted 45 | . . . . 15 . . . . . . . . . . . 15 . . 15 . . . . Lose Combat Pursuer 375 | . 30 . . 15 . . . . . . 15 45 . . 15 15 60 15 . 120 15 30 . Influence Decreases 14412 | 40 372 266 20 313 465 601 616 503 71 165 437 823 743 775 540 1034 745 670 1160 869 885 668 1631 Entered New Map 5281 | . . 129 20 . 278 . 146 55 64 . 29 113 409 314 . 445 128 250 144 213 687 436 1421 Time Decay 7366 | 40 362 137 . 276 177 254 410 428 7 134 373 406 334 441 350 589 486 410 696 636 198 222 . Lost Part 330 | . 10 . . 10 10 . . . . . 10 10 . . 10 . 20 10 . 20 . 10 210 Lost Ally 543 | . . . . 27 . 100 60 20 . 31 25 80 . 20 180 . . . . . . . . Purge Threat 892 | . . . . . . 247 . . . . . 214 . . . . 111 . 320 . . . . Squads Dispatched 83 | . 5 . . 5 . 4 . . . . 11 3 . . 14 2 7 4 5 19 2 2 . Investigation 6 | . 2 . . . . . . . . . 1 . . . 1 1 . . . . . 1 . Extermination 23 | . . . . 2 . 1 . . . . 2 . . . 2 . 4 3 2 5 1 1 . Reinforcement 26 | . 3 . . 2 . 1 . . . . 5 1 . . 3 1 2 1 3 3 1 . . Assault 19 | . . . . . . 1 . . . . . 2 . . 4 . 1 . . 11 . . . Garrison 9 | . . . . 1 . 1 . . . . 3 . . . 4 . . . . . . . . Intercept . | . . . . . . . . . . . . . . . . . . . . . . . . Searches Triggered . | . . . . . . . . . . . . . . . . . . . . . . . . Construction Impeded 4 | . . . . . . . . . . . 1 1 . . 2 . . . . . . . . Haulers Reinforced 5 | . . . . 1 . 1 . . . . 2 . . . . 1 . . . . . . . Active Scanning Responses . | . . . . . . . . . . . . . . . . . . . . . . . . Cargo Convoy Interrupts . | . . . . . . . . . . . . . . . . . . . . . . . . Stealth | -11 -10 -10 -7 -5 -5 -5 -5 -5 -5 -4 -4 -4 -4 -4 -4 -3 -3 -2 -2 -2 -1 -1 -1 --------- Run | Yrd Mat Sub Scr Fac Was Fac Upp Upp Zhi Pro Fac Ext Cet Arc Hub Res Tes Res Qua Sec Acc Com Ac0 Distress Signals 53 | . 4 . . 2 . 1 . . . . . 4 2 . 10 2 1 1 . 2 2 22 . Communications Jammed 28 | . . . . . . . . . . . . . . . . . 3 5 . 20 . . . Distress Signals 23 | . . . . . . . . . . . . . . . . . 2 1 . 20 . . . Times Spotted 502 | . 35 17 . 22 5 7 7 9 . 7 18 41 9 7 40 23 44 13 33 76 12 17 60 Peak Tracking Total 9 | . 6 3 . 4 2 3 7 3 . 4 5 6 5 1 9 6 6 5 5 6 5 5 4 Tactical Retreats 20 | . 2 . . 1 . . . . . . 1 2 . . 1 1 3 1 . 5 1 2 . Traps | -11 -10 -10 -7 -5 -5 -5 -5 -5 -5 -4 -4 -4 -4 -4 -4 -3 -3 -2 -2 -2 -1 -1 -1 ------- Run | Yrd Mat Sub Scr Fac Was Fac Upp Upp Zhi Pro Fac Ext Cet Arc Hub Res Tes Res Qua Sec Acc Com Ac0 Traps Triggered 11 | . 1 . . 4 . . . . . . . . . . . 1 2 . 2 . . 1 . Indirectly 3 | . . . . 3 . . . . . . . . . . . . . . . . . . . Trap Hack Attempts . | . . . . . . . . . . . . . . . . . . . . . . . . Triggered . | . . . . . . . . . . . . . . . . . . . . . . . . Disarmed . | . . . . . . . . . . . . . . . . . . . . . . . . Reprogrammed . | . . . . . . . . . . . . . . . . . . . . . . . . Reused . | . . . . . . . . . . . . . . . . . . . . . . . . Traps Extracted . | . . . . . . . . . . . . . . . . . . . . . . . . Installed . | . . . . . . . . . . . . . . . . . . . . . . . . Triggered . | . . . . . . . . . . . . . . . . . . . . . . . . Machines | -11 -10 -10 -7 -5 -5 -5 -5 -5 -5 -4 -4 -4 -4 -4 -4 -3 -3 -2 -2 -2 -1 -1 -1 ---------- Run | Yrd Mat Sub Scr Fac Was Fac Upp Upp Zhi Pro Fac Ext Cet Arc Hub Res Tes Res Qua Sec Acc Com Ac0 Machines Disabled 77 | . 2 . . 6 . 3 3 1 . . 2 3 . . 8 1 4 . 12 17 1 7 7 Max in Single Turn 5 | . 1 . . 5 . 1 . 1 . . 1 2 . . 3 1 1 . 2 2 1 2 1 Garrison Access 7 | . . . . 1 . . . . . . 1 . . . 1 1 1 . 1 . 1 . . Phase Generator 1 | . . . . . . . . . . . . . . . . . . . . . . 1 . Energy Cycler 2 | . . . . . . . . . . . . 2 . . . . . . . . . . . Machines Repaired . | . . . . . . . . . . . . . . . . . . . . . . . . Machines Dismantled . | . . . . . . . . . . . . . . . . . . . . . . . . Machines Sabotaged . | . . . . . . . . . . . . . . . . . . . . . . . . Overloaded Fab Kills . | . . . . . . . . . . . . . . . . . . . . . . . . Hacking | -11 -10 -10 -7 -5 -5 -5 -5 -5 -5 -4 -4 -4 -4 -4 -4 -3 -3 -2 -2 -2 -1 -1 -1 --------- Run | Yrd Mat Sub Scr Fac Was Fac Upp Upp Zhi Pro Fac Ext Cet Arc Hub Res Tes Res Qua Sec Acc Com Ac0 Machines Accessed 87 | . 9 1 3 3 . 9 . 3 4 . 7 3 . . 3 7 9 3 9 7 4 3 . Terminals 51 | . 6 . . 2 . 8 . . . . 3 3 . . 2 3 5 1 6 6 3 3 . Fabricators 3 | . . . . . . . . . . . 1 . . . . 1 1 . . . . . . Repair Stations 5 | . 1 . . . . . . . . . . . . . . 2 1 . 1 . . . . Recycling Units 5 | . 2 . . . . . . . . . 2 . . . . . . 1 . . . . . Scanalyzers 3 | . . . . . . . . . . . . . . . . . 1 . 1 1 . . . Garrison Access 9 | . . . . 1 . 1 . . . . 1 . . . 1 1 1 1 1 . 1 . . Total Hacks 223 | . 36 4 25 8 . 21 . 7 17 . 12 14 . . 5 12 19 3 19 11 5 5 . Successful 114 | . 16 4 25 1 . 6 . 7 17 . 3 8 . . 1 2 6 1 8 5 3 1 . Failed 109 | . 20 . . 7 . 15 . . . . 9 6 . . 4 10 13 2 11 6 2 4 . Catastrophic 31 | . 2 . . 2 . 4 . . . . 4 1 . . 2 3 5 . 4 1 1 2 . Database Lockouts . | . . . . . . . . . . . . . . . . . . . . . . . . Manual 60 | . 17 . 1 2 . 5 . . . . 4 1 1 . 4 5 3 1 10 3 1 2 . Terminals 122 | . 26 . . 6 . 20 . . . . 5 14 . . 4 4 10 1 14 10 3 5 . Fabricators 5 | . . . . . . . . . . . 1 . . . . 2 2 . . . . . . Repair Stations 11 | . 3 . . . . . . . . . . . . . . 4 2 . 2 . . . . Recycling Units 12 | . 7 . . . . . . . . . 4 . . . . . . 1 . . . . . Scanalyzers 5 | . . . . . . . . . . . . . . . . . 2 . 2 1 . . . Garrison Access 15 | . . . . 2 . 1 . . . . 2 . . . 1 2 3 1 1 . 2 . . Terminal Hacks 88 | . 8 4 25 . . 5 . 7 17 . 1 7 . . . . 3 1 4 3 2 1 . Record 41 | . . 4 25 . . . . 6 5 . . . . . . . . . . . . 1 . Part Schematic 4 | . . . . . . . . . 4 . . . . . . . . . . . . . . Robot Analysis 5 | . 1 . . . . . . . 4 . . . . . . . . . . . . . . Prototype ID Bank 11 | . 3 . . . . 1 . . 4 . . 2 . . . . 1 . . . . . . Open Door 7 | . . . . . . . . 1 . . 1 . . . . . . . 1 2 2 . . Level Access Points 1 | . . . . . . . . . . . . . . . . . . . . 1 . . . Branch Access Points 2 | . . . . . . 1 . . . . . . . . . . . 1 . . . . . Alert Level 1 | . . . . . . . . . . . . 1 . . . . . . . . . . . Unreport Threat 9 | . . . . . . 2 . . . . . 2 . . . . 2 . 3 . . . . Locate Traps 1 | . 1 . . . . . . . . . . . . . . . . . . . . . . Hauler Manifests 1 | . 1 . . . . . . . . . . . . . . . . . . . . . . Registered Components 1 | . . . . . . . . . . . . 1 . . . . . . . . . . . Zone Layout 4 | . 2 . . . . 1 . . . . . 1 . . . . . . . . . . . Fabricator Hacks 1 | . . . . . . . . . . . . . . . . 1 . . . . . . . Network Status 1 | . . . . . . . . . . . . . . . . 1 . . . . . . . Repair Station Hacks 3 | . 1 . . . . . . . . . . . . . . . 1 . 1 . . . . Scan Component 3 | . 1 . . . . . . . . . . . . . . . 1 . 1 . . . . Recycling Unit Hacks 2 | . 2 . . . . . . . . . . . . . . . . . . . . . . Retrieve Components 2 | . 2 . . . . . . . . . . . . . . . . . . . . . . Scanalyzer . | . . . . . . . . . . . . . . . . . . . . . . . . Garrison Access Hacks 6 | . . . . 1 . . . . . . 1 . . . . 1 1 . 1 . 1 . . Seal Access 6 | . . . . 1 . . . . . . 1 . . . . 1 1 . 1 . 1 . . Unauthorized Hacks 14 | . 5 . . . . 1 . . . . 1 1 . . 1 . 1 . 2 2 . . . Terminals 10 | . 4 . . . . 1 . . . . . 1 . . 1 . 1 . 1 1 . . . Track 3 | . 1 . . . . . . . . . . . . . . . 1 . . 1 . . . Assimilate 2 | . 1 . . . . . . . . . . . . . . . . . 1 . . . . Botnet 1 | . . . . . . . . . . . . 1 . . . . . . . . . . . Disrupt 1 | . 1 . . . . . . . . . . . . . . . . . . . . . . Operators 2 | . 1 . . . . 1 . . . . . . . . . . . . . . . . . Sabotage 1 | . . . . . . . . . . . . . . . 1 . . . . . . . . Fabricators . | . . . . . . . . . . . . . . . . . . . . . . . . Repair Stations . | . . . . . . . . . . . . . . . . . . . . . . . . Recycling Units 2 | . 1 . . . . . . . . . 1 . . . . . . . . . . . . Mask 1 | . 1 . . . . . . . . . . . . . . . . . . . . . . Scrapoids 1 | . . . . . . . . . . . 1 . . . . . . . . . . . . Scanalyzers 2 | . . . . . . . . . . . . . . . . . . . 1 1 . . . Researchers 2 | . . . . . . . . . . . . . . . . . . . 1 1 . . . Garrison Access . | . . . . . . . . . . . . . . . . . . . . . . . . Data Cores Recovered 4 | . . . . . . 2 . . . . . . . . . . . . . 1 1 . . Used 2 | . . . . . . 1 . . . . . . . . . . . . . . 1 . . Hacking Detections 65 | . 9 . . 2 . 9 . . . . 5 3 . . 2 7 8 2 8 5 2 3 . Full Trace Events 1 | . 1 . . . . . . . . . . . . . . . . . . . . . . Feedback Events . | . . . . . . . . . . . . . . . . . . . . . . . . Feedback Blocked . | . . . . . . . . . . . . . . . . . . . . . . . . Robot Schematics Acquired 1 | . . . . . . . . . . . . . . . . . . . 1 . . . . Robots Built . | . . . . . . . . . . . . . . . . . . . . . . . . Authchips . | . . . . . . . . . . . . . . . . . . . . . . . . Time . | . . . . . . . . . . . . . . . . . . . . . . . . Total Robot Build Rating . | . . . . . . . . . . . . . . . . . . . . . . . . Part Schematics Acquired 13 | . . . . . . . . . 4 . . . . . . . 4 . 5 . . . . Parts Built . | . . . . . . . . . . . . . . . . . . . . . . . . Authchips . | . . . . . . . . . . . . . . . . . . . . . . . . Time . | . . . . . . . . . . . . . . . . . . . . . . . . Total Part Build Rating . | . . . . . . . . . . . . . . . . . . . . . . . . Parts Repaired . | . . . . . . . . . . . . . . . . . . . . . . . . Time . | . . . . . . . . . . . . . . . . . . . . . . . . Parts Recycled . | . . . . . . . . . . . . . . . . . . . . . . . . Recycled Matter . | . . . . . . . . . . . . . . . . . . . . . . . . Retrieved Matter . | . . . . . . . . . . . . . . . . . . . . . . . . Retrieved Components 11 | . 11 . . . . . . . . . . . . . . . . . . . . . . Parts Scanalyzed . | . . . . . . . . . . . . . . . . . . . . . . . . Part Schematics Acquired . | . . . . . . . . . . . . . . . . . . . . . . . . Parts Damaged . | . . . . . . . . . . . . . . . . . . . . . . . . Bothacking | -11 -10 -10 -7 -5 -5 -5 -5 -5 -5 -4 -4 -4 -4 -4 -4 -3 -3 -2 -2 -2 -1 -1 -1 ------------ Run | Yrd Mat Sub Scr Fac Was Fac Upp Upp Zhi Pro Fac Ext Cet Arc Hub Res Tes Res Qua Sec Acc Com Ac0 Used RIF Installer . | . . . . . . . . . . . . . . . . . . . . . . . . Robots Hacked . | . . . . . . . . . . . . . . . . . . . . . . . . Non-combat . | . . . . . . . . . . . . . . . . . . . . . . . . Combat . | . . . . . . . . . . . . . . . . . . . . . . . . Robot Hacks Applied . | . . . . . . . . . . . . . . . . . . . . . . . . Relay Couplers Released 8 | . . . . 2 . . . . . . . . . . 1 . 2 . . 3 . . . Machine Destruction 5 | . . . . 2 . . . . . . . . . . 1 . 2 . . . . . . Programmers 3 | . . . . . . . . . . . . . . . . . . . . 3 . . . Fabnet Peak Effective % . | . . . . . . . . . . . . . . . . . . . . . . . . Robots Rewired 7 | . . . . . . . . . . . . 6 . . . . 1 . . . . . . Allies Hacked 3 | . . . . 1 . 1 . 1 . . . . . . . . . . . . . . . Hacks Repelled . | . . . . . . . . . . . . . . . . . . . . . . . . Allies | -11 -10 -10 -7 -5 -5 -5 -5 -5 -5 -4 -4 -4 -4 -4 -4 -3 -3 -2 -2 -2 -1 -1 -1 -------- Run | Yrd Mat Sub Scr Fac Was Fac Upp Upp Zhi Pro Fac Ext Cet Arc Hub Res Tes Res Qua Sec Acc Com Ac0 Total Allies 47 | . . . 5 . 18 . . . . . 5 12 5 . . . 1 . 1 . . . . Largest Group 18 | . . . 5 5 18 18 12 8 6 6 5 8 12 11 9 . 1 . 1 . . . . Highest-Rated Group 868 | . . . 235 235 656 656 485 319 227 225 235 463 868 733 654 . 116 . 10 . . . . Highest-Rated Ally 159 | . . . 47 47 50 50 50 46 46 46 47 159 152 96 96 . 116 . 10 . . . . Total Orders 12 | . . . . . . . . . . . . . 2 1 . . 4 5 . . . . . STAY 3 | . . . . . . . . . . . . . 1 1 . . 1 . . . . . . FOLLOW 3 | . . . . . . . . . . . . . 1 . . . 1 1 . . . . . RETURN 6 | . . . . . . . . . . . . . . . . . 2 4 . . . . . Ally Attacks 542 | . . . . 61 . 120 46 30 . 19 35 123 27 16 48 . 17 . . . . . . Total Damage 15289 | . . . . 1290 . 2501 2930 772 . 520 629 2957 755 603 1633 . 699 . . . . . . Kills 85 | . . . . 10 . 17 11 3 . 5 3 17 4 3 7 . 5 . . . . . . Allies Corrupted 1 | . . . . . . . . 1 . . . . . . . . . . . . . . . Allies Melted 2 | . . . . . . . 1 . . . . . . . 1 . . . . . . . . Intel | -11 -10 -10 -7 -5 -5 -5 -5 -5 -5 -4 -4 -4 -4 -4 -4 -3 -3 -2 -2 -2 -1 -1 -1 ------- Run | Yrd Mat Sub Scr Fac Was Fac Upp Upp Zhi Pro Fac Ext Cet Arc Hub Res Tes Res Qua Sec Acc Com Ac0 Active Infowar (turns) 35056 | 11 1753 4786 1193 317 . 101 775 974 217 426 967 333 . 12562 487 1567 1657 983 3035 1941 288 368 315 Optics 1 | . . . . . . . . . . . . . . . . . . . 1 . . . . Sensors 25013 | . . . . . . . 775 925 217 426 967 333 . 12562 487 1557 1219 827 2799 1575 288 56 . Terrain 628 | . . . . . . . . . . . . . . . . . . . 1 . . 312 315 Seismic 8060 | 11 1753 4786 1193 317 . . . . . . . . . . . . . . . . . . . Jamming 4211 | . . . . . . 101 . 50 . . . . . . . 10 1281 509 1117 1143 . . . Robot Analysis Total 5 | . 1 . . . . . . . 4 . . . . . . . . . . . . . . Derelict Logs Recovered 8 | . . 2 3 . . . 1 1 . 1 . . . . . . . . . . . . . Drone Launches 8 | . . . . . . . . . . . . . . . . . 7 1 . . . . . Drone Recoveries 8 | . . . . . . . . . . . . . . . . . 5 3 . . . . . Exploration | -11 -10 -10 -7 -5 -5 -5 -5 -5 -5 -4 -4 -4 -4 -4 -4 -3 -3 -2 -2 -2 -1 -1 -1 ------------- Run | Yrd Mat Sub Scr Fac Was Fac Upp Upp Zhi Pro Fac Ext Cet Arc Hub Res Tes Res Qua Sec Acc Com Ac0 Turns Passed 58907 | 292 1871 5904 5617 800 1431 640 994 1040 223 677 1078 1000 746 13246 1054 1851 1779 985 3614 2462 417 9587 1599 Spaces Moved 24756 | 131 666 2457 3262 428 887 483 918 901 153 579 814 654 248 754 332 1023 838 456 1899 1129 229 4871 644 Core 604 | 8 . . 108 . . . . . . . . . . 419 . . . . . . . 31 38 Treads 14197 | 123 542 1633 . . . . . . . . . . 212 335 332 1023 838 456 1899 1129 229 4840 606 Legs . | . . . . . . . . . . . . . . . . . . . . . . . . Wheels 9955 | . 124 824 3154 428 887 483 918 901 153 579 814 654 36 . . . . . . . . . . Hover . | . . . . . . . . . . . . . . . . . . . . . . . . Flight . | . . . . . . . . . . . . . . . . . . . . . . . . Fastest Speed 50 | 50 155 145 50 130 130 110 100 100 100 100 100 110 110 160 160 160 160 160 160 135 135 135 50 Average Speed 204 | 159 211 208 160 145 130 115 100 100 100 100 109 110 221 1733 231 160 160 160 160 148 135 168 135 Slowest Speed 4100 | 200 320 240 205 200 140 130 110 100 100 100 110 110 320 2950 240 160 160 160 240 160 135 4100 151 Overloaded Moves . | . . . . . . . . . . . . . . . . . . . . . . . . Propulsion Burnouts . | . . . . . . . . . . . . . . . . . . . . . . . . Robots Hopped . | . . . . . . . . . . . . . . . . . . . . . . . . Potential Cave-ins 16 | . . 3 . . . . . . . . . . . . . . . . . . 6 4 3 Cave-ins Triggered . | . . . . . . . . . . . . . . . . . . . . . . . . Teleports 2 | . . . . . . . . . . . . . . . . . . . . 1 . 1 . Exploration Rate (%) 61 | 9 96 95 91 14 97 17 95 94 60 78 27 85 57 97 29 38 92 20 94 58 9 83 45 Regions Visited 23 Branch Regions 15 Pre-discovered Areas 11 | . . 3 3 . . . . 2 3 . . . . . . . . . . . . . . Known Exits Taken 16 | . . . . . . 1 1 1 1 1 1 1 1 1 1 1 1 1 1 1 1 . . Unknown Exits Taken 5 | 1 1 1 1 . . . . . . . . . . . . . . . . . . 1 . Scrap Searched 28 | . . 5 11 . . . 4 4 . 4 . . . . . . . . . . . . . Spaces Dug 211 | . 2 7 . 9 . 3 6 2 . . 22 . . . 9 21 22 18 14 38 25 11 2 Terrain Destroyed 1023 | . 14 14 . 44 26 12 26 28 . 13 71 94 4 1 43 37 54 24 100 151 42 137 88 Melee 2 | . . . . 2 . . . . . . . . . . . . . . . . . . . Projectile 734 | . 9 14 . 22 26 12 26 28 . 13 71 47 . . 20 26 46 23 50 127 42 77 55 AOE 209 | . 5 . . 20 . . . . . . . 47 . . 4 7 . . 48 24 . 54 . Terrain Rammed . | . . . . . . . . . . . . . . . . . . . . . . . . Walls Destroyed . | . . . . . . . . . . . . . . . . . . . . . . . . Machines Disabled . | . . . . . . . . . . . . . . . . . . . . . . . . Actions | -11 -10 -10 -7 -5 -5 -5 -5 -5 -5 -4 -4 -4 -4 -4 -4 -3 -3 -2 -2 -2 -1 -1 -1 --------- Run | Yrd Mat Sub Scr Fac Was Fac Upp Upp Zhi Pro Fac Ext Cet Arc Hub Res Tes Res Qua Sec Acc Com Ac0 Total 30558 | 177 996 2992 3687 558 1134 561 978 1026 206 671 949 853 404 888 459 1142 1065 629 2289 1594 286 6064 950 Wait 2747 | . 238 343 267 . 186 32 32 83 3 81 13 1 78 76 33 11 13 77 71 154 13 912 30 Move 24735 | 130 665 2456 3261 428 886 482 917 900 152 578 813 654 247 753 331 1022 837 455 1898 1128 228 4870 644 Hop . | . . . . . . . . . . . . . . . . . . . . . . . . Pick Up 312 | 5 14 13 86 22 4 6 1 5 4 . 9 5 18 5 . 13 13 11 23 13 1 33 8 Fast Attach 179 | 7 . . 8 6 4 3 . . 8 . 5 6 6 12 . 4 9 2 42 32 2 15 8 Attach 82 | . 1 4 1 11 2 2 . . 2 . 2 2 4 4 3 1 2 3 4 5 1 8 20 Detach 69 | . . . 4 4 3 2 . . 3 . 3 6 1 8 2 2 2 1 4 7 2 9 6 Swap 416 | . 9 35 . 14 9 4 7 11 4 4 16 17 8 2 17 21 38 24 46 52 7 34 37 Drop 403 | . . 11 60 19 6 16 1 5 19 . 12 11 23 11 1 11 20 11 69 37 1 45 14 Fire 1471 | 33 68 130 . 46 34 14 20 22 11 8 75 83 19 17 71 56 106 44 130 163 25 113 183 Melee 8 | . . . . 8 . . . . . . . . . . . . . . . . . . . Ram . | . . . . . . . . . . . . . . . . . . . . . . . . Kick . | . . . . . . . . . . . . . . . . . . . . . . . . Crush 20 | 2 1 . . . . . . . . . . . . . 1 1 4 . 2 3 6 . . Escape Stasis . | . . . . . . . . . . . . . . . . . . . . . . . . Rewire 115 | . . . . . . . . . . . 1 68 . . . . 21 . . . . 25 . Trap . | . . . . . . . . . . . . . . . . . . . . . . . . Miscellaneous 1 | . . . . . . . . . . . . . . . . . . 1 . . . . . Route ------- -11/Scrapyard -10/Materials (discovered 5 exits: [*Mat x3] / [*Min] / *Sub) -10/Subcaves (discovered 3 exits: [*Mat x2] / *Scr) -7/Scraptown (discovered 2 exits: *Fac x2) -5/Factory -5/Waste -5/Factory (discovered 3 exits: *Fac / *Upp x2) -5/Upper Caves -5/Upper Caves (discovered 2 exits: *Fac / *Zhi) -5/Zhirov -4/Proximity Caves -4/Factory -4/Extension (discovered 3 exits: *Res x2 / *Cet) -4/Cetus (discovered 2 exits: *Res / *Arc) -4/Archives (discovered 3 exits: *Res / *Hub x2) -4/Hub_04(d) -3/Research (discovered 5 exits: Res x2 / Arm / *Tes x2) -3/Testing -2/Research (discovered 4 exits: Acc x2 / *Qua x2) -2/Quarantine (discovered 3 exits: *Acc / *Sec / [*Frg]) -2/Section 7 -1/Access -1/Command (discovered 3 exits: *Sur x2 / [*Ac0]) -1/Access_0 History --------- Turn | Location | Event 20 | -11/Scrapyard | Discovered new exit (range 16) 293 | -11/Scrapyard | Entered Materials 303 | -10/Materials | Build established: Mutant 354 | -10/Materials | Discovered new exit (range 8) 950 | -10/Materials | Discovered new exit (range 14) 1352 | -10/Materials | Discovered new exit (range 10) 1905 | -10/Materials | Discovered new exit (range 16) 1953 | -10/Materials | Discovered new exit (range 11) 2164 | -10/Materials | Entered Subcaves 2165 | -10/Subcaves | Approached by a straggling Scientist 2327 | -10/Subcaves | Ambushed by Subdwellers from Twisted Machinery 2346 | -10/Subcaves | Core integrity fell below 50% 2529 | -10/Subcaves | Discovered new exit (range 8) 2530 | -10/Subcaves | Learned location of Zion (-7) 2530 | -10/Subcaves | Met a Zionite searching for "candidates" 2812 | -10/Subcaves | Learned Materials terminal intel 2815 | -10/Subcaves | Shifting Twisted Machinery released Riot Gun 2832 | -10/Subcaves | Shifting Twisted Machinery released Battle Cannon 3081 | -10/Subcaves | Discovered new exit (range 12) 3399 | -10/Subcaves | Shifting Twisted Machinery released Piercing Trap 3442 | -10/Subcaves | Shifting Twisted Machinery released Sub. Machine Gun 3590 | -10/Subcaves | Visited Clippyterm 3597 | -10/Subcaves | Learned location of Extension (-4) 3597 | -10/Subcaves | Learned location of Section 7 (-2) 4303 | -10/Subcaves | Disturbed a concealed Subdweller 4446 | -10/Subcaves | A swath of the cavern ceiling suddenly collapsed 5620 | -10/Subcaves | Learned 2 Materials zone layouts 6843 | -10/Subcaves | Visited 4L-MR0's lab 7275 | -10/Subcaves | Core integrity fell below 20% 8062 | -10/Subcaves | Scientist uncovered a shortcut to Scraptown 8068 | -10/Subcaves | Entered Scraptown 8323 | -7/Scraptown | Discovered new exit (range 5) 8325 | -7/Scraptown | Received an X-ray algorithm 8393 | -7/Scraptown | Scanned Subdweller tech in exchange for log data 8397 | -7/Scraptown | Learned Research emergency access door positions 8398 | -7/Scraptown | Learned Factory stockpile data 8399 | -7/Scraptown | Learned Factory security intel 8437 | -7/Scraptown | Visited Spacefarers 8445 | -7/Scraptown | Visited Bundlers 8518 | -7/Scraptown | Visited The Evicted 8585 | -7/Scraptown | Visited Red Mages 8601 | -7/Scraptown | Visited Assassins FH 8629 | -7/Scraptown | Visited UFD Registry 8649 | -7/Scraptown | Visited Cyclists 8869 | -7/Scraptown | Registered with UFD as "Shadowcycle" 8912 | -7/Scraptown | Visited Cartography Club 8932 | -7/Scraptown | Visited Curators Association 8975 | -7/Scraptown | Visited Research Penetration Think Tank 9004 | -7/Scraptown | Visited Science Testing Area 9021 | -7/Scraptown | Visited Scrapoid Pod Storage 9040 | -7/Scraptown | Visited DA-N13 Charitable Foundation 9045 | -7/Scraptown | Found DCF Scrap (30 items) 9074 | -7/Scraptown | Visited LU-1G1's Boring Crew 9103 | -7/Scraptown | Visited Infowarlord's Domain 9142 | -7/Scraptown | Visited Abandonware Association 9151 | -7/Scraptown | Learned abandonware demo "OVRCLOCK.EXE" 9156 | -7/Scraptown | Learned abandonware demo "REBOOT5.EXE" 9242 | -7/Scraptown | Delivered Scrap Shield to a Scientist 9544 | -7/Scraptown | Found Exp. Sensor Array 9552 | -7/Scraptown | Build established: Hauler-Mutant 9673 | -7/Scraptown | Found Surveybot 17 Chip 9689 | -7/Scraptown | Learned location of Armory (-3) 9689 | -7/Scraptown | Learned location of Testing (-3) 9689 | -7/Scraptown | Learned 16 Research zone layouts 9689 | -7/Scraptown | Learned 8 Lower Caves zone layouts 9689 | -7/Scraptown | Learned 8 Upper Caves zone layouts 9689 | -7/Scraptown | Learned 12 Proximity Caves zone layouts 9689 | -7/Scraptown | Learned 16 Proximity Caves zone layouts 9689 | -7/Scraptown | Learned location of 2 exits from Research 9689 | -7/Scraptown | Learned location of 3 exits from Lower Caves 9689 | -7/Scraptown | Learned location of 2 exits from Upper Caves 9701 | -7/Scraptown | Found Deep Structural Scanner 11175 | -7/Scraptown | Found Scrapoid Pod 11443 | -7/Scraptown | Build established: Mutant 11600 | -7/Scraptown | Scrapoid Pod released 07S05-D (x5) 12150 | -7/Scraptown | Build established: Hauler-Mutant 12835 | -7/Scraptown | Entered Cyclist Reading Room 12890 | -7/Scraptown | Visited Cave Peace 13159 | -7/Scraptown | Discovered new exit (range 5) 13258 | -7/Scraptown | Found Scrap Suit 13561 | -7/Scraptown | Met Optimus 13561 | -7/Scraptown | Accepted into 0bPrime 13561 | -7/Scraptown | Ran an X-ray algorithm 13685 | -7/Scraptown | Entered Factory 13685 | -5/Factory | Accompanied by 5 allies 13685 | -5/Factory | Evolved 10 slots: Power x1, Propulsion x2, Utility x5, Weapon x2 13878 | -5/Factory | Discovered new exit (range 6) 13879 | -5/Factory | Garrison activated, responded to threat 13900 | -5/Factory | Found Scrap Suit 14114 | -5/Factory | Found Scrap Suit 14365 | -5/Factory | Build established: Scavenger-Scrapper 14485 | -5/Factory | Sucked down chute 14485 | -5/Factory | Entered Waste 14492 | -5/Waste | Spotted C-40 Crusher 14522 | -5/Waste | Destroyed C-40 Crusher 14526 | -5/Waste | Spotted C-40 Crusher 14541 | -5/Waste | Destroyed C-40 Crusher 14547 | -5/Waste | Spotted C-40 Crusher 14555 | -5/Waste | Destroyed C-40 Crusher 14579 | -5/Waste | Spotted C-40 Crusher 14581 | -5/Waste | Destroyed C-40 Crusher 14659 | -5/Waste | Spotted C-40 Crusher 14660 | -5/Waste | Spotted C-40 Crusher 14679 | -5/Waste | Destroyed C-40 Crusher 14743 | -5/Waste | Discovered new exit (range 12) 14804 | -5/Waste | Crushed by Compactor (1 part destroyed, 1 dropped) 15011 | -5/Waste | Destroyed C-40 Crusher 15113 | -5/Waste | Warlord forces began an assault 15916 | -5/Waste | Entered Factory 15916 | -5/Factory | Accompanied by 18 allies 15944 | -5/Factory | Identified exit to Upper Caves 16167 | -5/Factory | Discovered new exit (range 9) 16469 | -5/Factory | Garrison activated, responded to threat 16493 | -5/Factory | P-70 Sage assimilated allied SW-M7Z(s) 16516 | -5/Factory | First assault squad dispatched 16556 | -5/Factory | Entered Upper Caves 16556 | -5/Upper Caves | Accompanied by 12 allies 16557 | -5/Upper Caves | Identified exit to Upper Caves 16558 | -5/Upper Caves | UFD Scientist delivered a prototype 16698 | -5/Upper Caves | Encountered a Warlord checkpoint 16707 | -5/Upper Caves | Learned Factory trap positions 16976 | -5/Upper Caves | Attracted the attention of an 0b10 base 17016 | -5/Upper Caves | Lost 3 allies 17201 | -5/Upper Caves | Spotted B-75 Beast 17224 | -5/Upper Caves | Destroyed B-75 Beast 17550 | -5/Upper Caves | Entered another Upper Caves area 17550 | -5/Upper Caves | Accompanied by 8 allies 17551 | -5/Upper Caves | Identified exit to Factory 17558 | -5/Upper Caves | Encountered a Warlord checkpoint 17633 | -5/Upper Caves | Attracted the attention of an 0b10 checkpoint 17717 | -5/Upper Caves | Found Alien Artifact 17951 | -5/Upper Caves | Learned Extension trap positions 17951 | -5/Upper Caves | Learned Extension emergency access door positions 17951 | -5/Upper Caves | Learned Armory garrison access intel 18556 | -5/Upper Caves | Discovered new exit (range 12) 18566 | -5/Upper Caves | Identified exit to Zhirov 18590 | -5/Upper Caves | Entered Zhirov 18590 | -5/Zhirov | Accompanied by 6 allies 18590 | -5/Zhirov | Discovered new exit (range 3) 18591 | -5/Zhirov | Identified exit to Proximity Caves 18612 | -5/Zhirov | Met Zhirov 18635 | -5/Zhirov | Learned location of Quarantine (-2) 18635 | -5/Zhirov | Learned location of Command (-1) 18641 | -5/Zhirov | Zhirov requested help retrieving the SGEMP Prototype 18658 | -5/Zhirov | Found Alien Artifact 18658 | -5/Zhirov | Identified Integrated Dissipator 18658 | -5/Zhirov | Installed Integrated Dissipator, increased core heat dissipation (+20) 18672 | -5/Zhirov | Found Alien Artifact 18813 | -5/Zhirov | Entered Proximity Caves 18813 | -4/Proximity Caves | Accompanied by 6 allies 19037 | -4/Proximity Caves | Learned 8 Research zone layouts 19490 | -4/Proximity Caves | Entered Factory 19490 | -4/Factory | Accompanied by 3 allies 19490 | -4/Factory | Evolved 2 slots: Utility x2 19491 | -4/Factory | Identified exit to Extension 19492 | -4/Factory | Loaded intel: 116 trap records 19676 | -4/Factory | Garrison activated, responded to threat 19697 | -4/Factory | Found Prototype Launcher 19697 | -4/Factory | Identified Com. Tesla Bomb Launcher 19704 | -4/Factory | Found Com. Tesla Bomb Launcher 19710 | -4/Factory | Lost 3 allies 19762 | -4/Factory | Scrapoid reinforcements arrived 19830 | -4/Factory | Lost 3 allies 20568 | -4/Factory | Entered Extension 20569 | -4/Extension | Loaded intel: 22 trap records 20751 | -4/Extension | Energy Cycler disabled 20751 | -4/Extension | Rescued a captive Derelict 20751 | -4/Extension | Rescued a captive Derelict 20752 | -4/Extension | Rescued a captive Derelict 20753 | -4/Extension | Rescued a captive Derelict 20753 | -4/Extension | Rescued a captive Derelict 20755 | -4/Extension | Rescued a captive Derelict 20756 | -4/Extension | Rescued a captive Derelict 20762 | -4/Extension | Rescued a captive Derelict 20829 | -4/Extension | Rescued A7 20992 | -4/Extension | Spotted B-86 Titan 21000 | -4/Extension | Destroyed B-86 Titan 21018 | -4/Extension | Spotted B-86 Titan 21044 | -4/Extension | Destroyed B-86 Titan 21048 | -4/Extension | Discovered new exit (range 15) 21143 | -4/Extension | Disrupted transfer network 21318 | -4/Extension | First assault squad dispatched 21536 | -4/Extension | Discovered new exit (range 10) 21537 | -4/Extension | Discovered new exit (range 6) 21551 | -4/Extension | Identified exit to Research 21565 | -4/Extension | Identified exit to Cetus 21568 | -4/Extension | Entered Cetus 21568 | -4/Cetus | Accompanied by 8 allies (A7) 21573 | -4/Cetus | Acquired a Cetus Manufacturing Module code from A7 21589 | -4/Cetus | Spotted Cetus Guard 21589 | -4/Cetus | Spotted Cetus Guard 21590 | -4/Cetus | Destroyed Cetus Guard 21590 | -4/Cetus | Destroyed Cetus Guard 21591 | -4/Cetus | Spotted Cetus Guard 21591 | -4/Cetus | Spotted Cetus Guard 21597 | -4/Cetus | Destroyed Cetus Guard 21598 | -4/Cetus | Allies destroyed Cetus Guard 21760 | -4/Cetus | Started Cetus Manufacturing Module 21785 | -4/Cetus | Manufactured an Enhanced Grunt 21808 | -4/Cetus | Discovered new exit (range 16) 21810 | -4/Cetus | Manufactured an Enhanced Grunt 21835 | -4/Cetus | Manufactured an Enhanced Grunt 21860 | -4/Cetus | Manufactured an Enhanced Grunt 21872 | -4/Cetus | Spotted Cetus Guard 21873 | -4/Cetus | Destroyed Cetus Guard 21873 | -4/Cetus | Destroyed Cetus Guard 21877 | -4/Cetus | Spotted Cetus Guard 21879 | -4/Cetus | Allies destroyed Cetus Guard 21879 | -4/Cetus | Spotted Cetus Guard 21885 | -4/Cetus | Manufactured an Enhanced Grunt 21892 | -4/Cetus | Allies destroyed Cetus Guard 21903 | -4/Cetus | Discovered exit to Research (range 15) 21919 | -4/Cetus | Met Revision 17 21966 | -4/Cetus | Build established: Commander-Tank 21966 | -4/Cetus | Murdered A7 21970 | -4/Cetus | Extracted ID and sensor layout for unrecognized location from A7's data core 21980 | -4/Cetus | Found Prototype Protection 21980 | -4/Cetus | Identified Med. Regenerative Plating 22128 | -4/Cetus | Identified exit to Archives 22314 | -4/Cetus | Entered Archives 22314 | -4/Archives | Accompanied by 11 allies 22400 | -4/Archives | Discovered new exit (range 14) 22429 | -4/Archives | Identified exit to Hub_04(d) 22738 | -4/Archives | Discovered exit to Hub_04(d) (range 16) 22820 | -4/Archives | Discovered exit to Research (range 16) 35560 | -4/Archives | Entered Hub_04(d) 35560 | -4/Hub_04(d) | Accompanied by 9 allies 35827 | -4/Hub_04(d) | Garrison activated, responded to threat 35920 | -4/Hub_04(d) | Lost 9 allies 35973 | -4/Hub_04(d) | Destroyed 15 combat bots 36008 | -4/Hub_04(d) | Discovered exit to Research (range 13) 36101 | -4/Hub_04(d) | Build established: Scavenger-Tank 36351 | -4/Hub_04(d) | Garrison activated, responded to threat 36496 | -4/Hub_04(d) | Spotted B-86 Titan 36560 | -4/Hub_04(d) | First assault squad dispatched 36614 | -4/Hub_04(d) | Entered Research 36614 | -3/Research | Evolved 2 slots: Propulsion x2 36615 | -3/Research | Identified exit to Research 36615 | -3/Research | Identified exit to Testing 36616 | -3/Research | Identified exit to Armory 36711 | -3/Research | Discovered exit to Testing (range 6) 36814 | -3/Research | Revision forces began assault on 0b10 36865 | -3/Research | Met up with Revision 17++ 37314 | -3/Research | Research terminal network offline 37862 | -3/Research | Spotted Striker 37864 | -3/Research | Destroyed Striker 37919 | -3/Research | Lost 4 allies 38270 | -3/Research | Spotted Striker 38271 | -3/Research | Spotted Executioner 38283 | -3/Research | Destroyed Striker 38316 | -3/Research | Found Prototype Processor 38316 | -3/Research | Identified Exp. Targeting Computer 38317 | -3/Research | Spotted Striker 38326 | -3/Research | Spotted Striker 38331 | -3/Research | Destroyed Striker 38465 | -3/Research | Entered Testing 38839 | -3/Testing | Found Prototype Device 38839 | -3/Testing | Identified AEGIS Remote Shield 38929 | -3/Testing | Found Prototype Device 38929 | -3/Testing | Identified 2N-1CE's Frost Array 39278 | -3/Testing | Found Prototype Hackware 39354 | -3/Testing | Discovered exit to Research (range 8) 39446 | -3/Testing | Identified System Mapper 39454 | -3/Testing | Rewired PL-ILOHQF04W7 39489 | -3/Testing | Found Prototype Energy Gun 39490 | -3/Testing | Identified Tachyon Dispersion Ray 39771 | -3/Testing | Spotted PL-RHPSJAF31N 39800 | -3/Testing | Destroyed PL-RHPSJAF31N 39858 | -3/Testing | Found Prototype Device 39954 | -3/Testing | Found Prototype Launcher 39965 | -3/Testing | First assault squad dispatched 40025 | -3/Testing | Destroyed PL-ILOHQF04W7 40092 | -3/Testing | Identified Hellfire Missile Launcher 40093 | -3/Testing | Found Corrupted Prototype Processor 40099 | -3/Testing | Identified Exp. Core Analyzer 40114 | -3/Testing | Identified Exp. Thermal Shield 40244 | -3/Testing | Entered Research 40244 | -2/Research | Accompanied by 2 allies 40244 | -2/Research | Evolved 2 slots: Power x1, Utility x1 40245 | -2/Research | Identified exit to Access 40264 | -2/Research | Identified exit to Quarantine 40825 | -2/Research | Found Exp. Signal Interpreter 41229 | -2/Research | Entered Quarantine 41337 | -2/Quarantine | Found Alien Artifact 41361 | -2/Quarantine | Found Alien Artifact 41361 | -2/Quarantine | Identified Core Reset Matrix 41361 | -2/Quarantine | Identified Subatomic Replicator 41361 | -2/Quarantine | Identified Dimensional Node Initializer 41361 | -2/Quarantine | Identified Transdimensional Reconstructor 41361 | -2/Quarantine | Used Core Reset Matrix 41365 | -2/Quarantine | Detected hypermatrix surge 41365 | -2/Quarantine | Sensed 7 artifacts in vicinity 41453 | -2/Quarantine | Found Core Cannon 41644 | -2/Quarantine | Scanned by Researcher 41725 | -2/Quarantine | System corruption reached 10% 42037 | -2/Quarantine | Cryocooling Duct disabled 42039 | -2/Quarantine | Cryocooling Duct disabled 42052 | -2/Quarantine | Ambient heat levels rising (+20) 42052 | -2/Quarantine | Non-combat units ordered to evacuate 42054 | -2/Quarantine | Ambient heat levels rising (+20) 42054 | -2/Quarantine | Combat units ordered to evacuate 42154 | -2/Quarantine | Quarantine Guard activated 42158 | -2/Quarantine | Found Prototype Launcher 42185 | -2/Quarantine | Identified Enh. Gamma Bomb Array 42223 | -2/Quarantine | Spotted Quarantine Guard 42228 | -2/Quarantine | Spotted Quarantine Guard 42245 | -2/Quarantine | Spotted Quarantine Guard 42249 | -2/Quarantine | Destroyed Quarantine Guard 42251 | -2/Quarantine | Destroyed Quarantine Guard 42253 | -2/Quarantine | Destroyed Quarantine Guard 42371 | -2/Quarantine | Spotted Fortress 42388 | -2/Quarantine | Destroyed Fortress 42462 | -2/Quarantine | Spotted Quarantine Guard 42473 | -2/Quarantine | Destroyed Quarantine Guard 42477 | -2/Quarantine | Spotted Quarantine Guard 42483 | -2/Quarantine | Destroyed Quarantine Guard 42492 | -2/Quarantine | Spotted Quarantine Guard 42499 | -2/Quarantine | Destroyed Quarantine Guard 42797 | -2/Quarantine | Spotted Quarantine Guard 42843 | -2/Quarantine | Destroyed Quarantine Guard 42897 | -2/Quarantine | Spotted Quarantine Guard 42905 | -2/Quarantine | Destroyed Quarantine Guard 43056 | -2/Quarantine | Found Unknown Device 43056 | -2/Quarantine | Identified Adv. Force Booster 43096 | -2/Quarantine | Found Prototype Device 43102 | -2/Quarantine | Identified Exp. Actuator Array 43138 | -2/Quarantine | Spotted Quarantine Guard 43168 | -2/Quarantine | Destroyed Quarantine Guard 43439 | -2/Quarantine | Spotted Quarantine Guard 43460 | -2/Quarantine | Destroyed Quarantine Guard 43617 | -2/Quarantine | Destroyed Quarantine Guard 43791 | -2/Quarantine | Spotted Alpha 7 43872 | -2/Quarantine | Destroyed Quarantine Guard 43922 | -2/Quarantine | Destroyed Alpha 7 43952 | -2/Quarantine | Discovered exit to Access (range 16) 44836 | -2/Quarantine | Discovered new exit (range 5) 44836 | -2/Quarantine | Discovered new exit (range 6) 44841 | -2/Quarantine | Identified exit to Section 7 44843 | -2/Quarantine | Entered Section 7 44844 | -2/Section 7 | Detected hypermatrix surge 44844 | -2/Section 7 | Sensed 21 artifacts in vicinity 45324 | -2/Section 7 | Found Core Reset Matrix 45326 | -2/Section 7 | Sensed 20 artifacts in vicinity 45406 | -2/Section 7 | Found Integrated Dissipator 45406 | -2/Section 7 | Installed Integrated Dissipator, increased core heat dissipation (+20) 45636 | -2/Section 7 | Spotted S7 Guard 45649 | -2/Section 7 | Destroyed S7 Guard 45711 | -2/Section 7 | Spotted S7 Guard 45737 | -2/Section 7 | Destroyed S7 Guard 45759 | -2/Section 7 | Found Integrated Thermoelectric Network 45759 | -2/Section 7 | Installed Integrated Thermoelectric Network, gained heat-energy exchange potential 45791 | -2/Section 7 | Found Core Membrane 45791 | -2/Section 7 | Installed Core Membrane, gained immunity to corruption 45843 | -2/Section 7 | First assault squad dispatched 45845 | -2/Section 7 | Found Integrated Dissipator 45845 | -2/Section 7 | Installed Integrated Dissipator, increased core heat dissipation (+20) 45911 | -2/Section 7 | Spotted S7 Guard 45923 | -2/Section 7 | Found Core Regenerator 45988 | -2/Section 7 | Destroyed S7 Guard 46033 | -2/Section 7 | Found Corrupted Prototype Protection 46033 | -2/Section 7 | Identified Hvy. Regenerative Plating 46531 | -2/Section 7 | Found Integrity Redistributor 46662 | -2/Section 7 | Initialized slip node 46699 | -2/Section 7 | Found Integrity Redistributor 46726 | -2/Section 7 | Spotted Executioner 46727 | -2/Section 7 | Spotted Executioner 46739 | -2/Section 7 | Destroyed Executioner 46743 | -2/Section 7 | Destroyed Executioner 46769 | -2/Section 7 | Found Exp. Core Analyzer 46774 | -2/Section 7 | Found Prototype Device 46774 | -2/Section 7 | Identified Adv. Kinecellerator 46796 | -2/Section 7 | Used Integrity Redistributor, redistributed integrity from core (-300) 46856 | -2/Section 7 | Build established: Alien-Tank 46985 | -2/Section 7 | Found Transdimensional Reconstructor 47095 | -2/Section 7 | High security lockdown imminent 47100 | -2/Section 7 | Spotted B-99 Colossus 47143 | -2/Section 7 | Found Core Expander 47143 | -2/Section 7 | Installed Core Expander, added new Power slot 47175 | -2/Section 7 | High security lockdown engaged 47198 | -2/Section 7 | Found LRC Insulator 47198 | -2/Section 7 | Installed LRC Insulator, 1 resistance modified: EM +25% 47208 | -2/Section 7 | Found LRC Matter Compressor 47208 | -2/Section 7 | Installed LRC Matter Compressor, increased matter storage capacity (+125) 47294 | -2/Section 7 | Warped through subspace to slip node 47305 | -2/Section 7 | Entered Access 47305 | -1/Access | Evolved 2 slots: Utility x2 47590 | -1/Access | Spotted B-99 Colossus 47713 | -1/Access | Discovered new exit (range 7) 47720 | -1/Access | Identified exit to Command 47722 | -1/Access | Entered Command 47954 | -1/Command | Spotted M Guard 47954 | -1/Command | Spotted M Guard 47954 | -1/Command | Spotted Combat Programmer 47955 | -1/Command | Destroyed Combat Programmer 47963 | -1/Command | Spotted Combat Programmer 47975 | -1/Command | Destroyed Combat Programmer 47989 | -1/Command | Destroyed M Guard 47990 | -1/Command | Destroyed M Guard 47990 | -1/Command | All MAIN.C guards destroyed 48012 | -1/Command | Found Corrupted Hvy. Regenerative Plating 48014 | -1/Command | Found Corrupted Prototype Reactor 48022 | -1/Command | Found Corrupted Prototype Energy Cannon 48024 | -1/Command | Found Corrupted Prototype Reactor 48029 | -1/Command | Found Corrupted AEGIS Remote Shield 48048 | -1/Command | Found Corrupted Prototype Reactor 48048 | -1/Command | Identified Zero-point Reactor (x3) 48050 | -1/Command | Identified Cld. Nova Cannon 48064 | -1/Command | Found Corrupted AEGIS Remote Shield 48066 | -1/Command | Found Corrupted Zero-point Reactor 48113 | -1/Command | Met MAIN.C 48116 | -1/Command | 0b10 Conduit disabled 48184 | -1/Command | Destroyed MAIN.C Shell 48187 | -1/Command | MAIN.C activated Command garrisons 48233 | -1/Command | Destroyed MAIN.C 48255 | -1/Command | Discovered new exit (range 31) 48255 | -1/Command | Discovered new exit (range 101) 48255 | -1/Command | Extracted map data and part IDs from MAIN.C's data core 48282 | -1/Command | Spotted B-99 Colossus 48665 | -1/Command | Build established: Scavenger-Gunner 49070 | -1/Command | Found Zero-point Reactor 51608 | -1/Command | Found Corrupted Multirail 51760 | -1/Command | Found Multirail 52496 | -1/Command | Phase Generator disabled 53781 | -1/Command | Identified exit to Surface 53942 | -1/Command | Found Corrupted Multirail 54247 | -1/Command | Found Exp. Armor Integrity Analyzer 54569 | -1/Command | Found Corrupted Multirail 54573 | -1/Command | Found Multirail 55290 | -1/Command | Found Adv. Kinecellerator 55618 | -1/Command | Found Zero-point Reactor 57303 | -1/Command | Warped through subspace to slip node 57303 | -1/Command | Discovered new exit (range 4) 57309 | -1/Command | Entered Access_0 57310 | -1/Access_0 | Sensed 4 artifacts in vicinity 57313 | -1/Access_0 | Met Architect 57323 | -1/Access_0 | Destroyed A8 57342 | -1/Access_0 | Architect warped through subspace 57346 | -1/Access_0 | Used Core Regenerator, restored core integrity (+400) 57386 | -1/Access_0 | Subspace Access Node disabled 57408 | -1/Access_0 | Architect warped through subspace 57436 | -1/Access_0 | Subspace Access Node disabled 57464 | -1/Access_0 | Architect warped through subspace 57483 | -1/Access_0 | Found Core Regenerator 57523 | -1/Access_0 | Architect warped through subspace 57567 | -1/Access_0 | Architect warped through subspace 57610 | -1/Access_0 | Architect warped through subspace 57628 | -1/Access_0 | A6 warped into view 57639 | -1/Access_0 | Destroyed A6 57653 | -1/Access_0 | Architect warped through subspace 57691 | -1/Access_0 | Used Integrity Redistributor, redistributed integrity from core (-361) 57705 | -1/Access_0 | Architect warped through subspace 57741 | -1/Access_0 | Found Integrity Redistributor 57752 | -1/Access_0 | Architect warped through subspace 57801 | -1/Access_0 | Architect warped through subspace 57864 | -1/Access_0 | Architect warped through subspace 57887 | -1/Access_0 | Found Prototype Device 57887 | -1/Access_0 | Identified Desublimator 57908 | -1/Access_0 | Core integrity fell below 50% 57929 | -1/Access_0 | Architect warped through subspace 57976 | -1/Access_0 | Architect warped through subspace 58022 | -1/Access_0 | Architect warped through subspace 58069 | -1/Access_0 | Architect warped through subspace 58085 | -1/Access_0 | A5 warped into view 58107 | -1/Access_0 | Destroyed A5 58115 | -1/Access_0 | Architect warped through subspace 58159 | -1/Access_0 | Architect warped through subspace 58220 | -1/Access_0 | Architect warped through subspace 58229 | -1/Access_0 | Used Core Regenerator, restored core integrity (+400) 58265 | -1/Access_0 | Architect warped through subspace 58315 | -1/Access_0 | Architect warped through subspace 58351 | -1/Access_0 | Architect warped through subspace 58374 | -1/Access_0 | Architect warped through subspace 58404 | -1/Access_0 | Architect warped through subspace 58443 | -1/Access_0 | Architect warped through subspace 58492 | -1/Access_0 | Architect warped through subspace 58592 | -1/Access_0 | Architect warped through subspace 58616 | -1/Access_0 | Lost 5 parts (1p2u2w) 58621 | -1/Access_0 | Subspace Access Node disabled 58638 | -1/Access_0 | Architect warped through subspace 58672 | -1/Access_0 | Found Exp. Weapon Cycler 58675 | -1/Access_0 | Found Exp. Targeting Computer 58680 | -1/Access_0 | Architect warped through subspace 58737 | -1/Access_0 | Destroyed A2 58740 | -1/Access_0 | Architect warped through subspace 58764 | -1/Access_0 | Extracted Singularity Gate Test 138-C access codes from A2's data core 58769 | -1/Access_0 | Architect warped through subspace 58793 | -1/Access_0 | Architect warped through subspace 58820 | -1/Access_0 | A4 warped into view 58824 | -1/Access_0 | Core integrity fell below 20% 58873 | -1/Access_0 | Used Subatomic Replicator to replicate Hds. Centrium Heavy Treads 58906 | -1/Access_0 | Lost 6 parts (3n1u2w) 58906 | -1/Access_0 | Subspace Access Node disabled 58908 | -1/Access_0 | Destroyed by Architect with Modified Sigix Sheargun Last Messages --------------- 58880_ Dropped Hvy. Regenerative Plating. 58880_ Penetrated by Quantum Shear. 58881_ Acquired Hds. Centrium Heavy Treads. 58882_ Dropped Exp. Energy Well. 58883_ Extracted 26 energy. 58883_ Penetrated by Quantum Shear. 58883_ Extracted 11 energy. 58884_ Acquired Exp. Energy Well. 58885_ Penetrated by Quantum Shear. 58885_ Quantum Shear penetrates Wall. 58885_ Penetrated by Quantum Shear. 58885_ Penetrated by Slug. 58885_ Dropped Graphene Brace. 58886_ Acquired Graviton Cannon. 58888_ Quantum Shear penetrates Wall. 58888_ Penetrated by Quantum Shear. 58906_ Beam penetrates Subspace Access Node. 58906_ Subspace Access Node disabled. 58906_ Beam penetrates Wall. 58906_ Beam penetrates Earth. Map ----- +----------------------------------------------------+ | ????????????????????????????? | | ???????????????????????????????# ###### ##"## | | ?????????????????????????????????? ?##???######### | | ??????????????????????????????????? ?#??########## | | ??????????????????????????????????????#?#??#?##### | | ?????????????????????????????????????? ??######### | | ??????????????????????????????????????? ?#????### | | ????????????????????????????????????? ? ? ??####?# | | ???????????????????????????????????? ? ??#?#????## | | ???????????????????????????????????? ??###??###### | | ?????????????????????????????????????? ?#???#?### | | ?????????????????????????????????# ?###?##### | | ??????????????????????????????????# ?#?#?##### | | ??????????????????????????????????# ? #?###### | | ?!?????????????????????????????????# ?######## | | ????????????????????????????????????# ##"""" | | ?????????????????????????????????????# ## | | ?????????????????????????????????????# | | ????????????????????????????????????# | | ???????????? ??????????????????????# | | ????????????? ????????????????????# | | ??????????????? ?????????????????#""" # | | ????????????????? ##??####????? " "####"" ## | | ???????????????????# ;## #????? #?##?## ## ### | | ????????????????????##;;; ##???? ??????#?######## | | #####################;;; @ "###??????###?####?#### | | 0 "" #?????????##?#?##### | | "" #???????#####?###### | | ########################" "###??????#???########? | | ???????????????????????## ##???????#???#?#?####?# | | ????????????????????????# #?????????####?####?### | | ????????????????????????# #?????? #?#?########### | | ????????????????????????# #??????? ### ## | | ????????????????????????# #??????? ### # | | ????????????????????????? ?????????? ?? ?#? ?? | | ????????????????????????? ????? ???? ??### | | ?????????????????????????###?????# ?#?# ?#?#? ? | | ?????????????????????????????????##?######?### | | ?????????????????????????????????#???######### | | ????????????????????????????????##???#???#### | | ??????????????????????????????????#?#?#?##?### | | ???????????????????????????????#??##?#??###?### | | ??????????????????????????????????##??????##### | | ??????????????????????????????????#?#??####### | | ??????????????????????????????????????######### | | ????????????????????????????????????###??###### | | ??????????????????????????????????##????###### | | ??????????????????????????????????#???#?##?#?# ## | | ??????????????????????????????????#?####??#??##?## | | ??????????????????????????????????#???###???###### | +----------------------------------------------------+ Best States ------------- Heat Dissipation 212 Coolant Potential 160 Energy Generation 113 Energy Capacity 2300 Matter Stores 905 Matter Capacity 925 Sight Range 16 Robot Scan Range 20 Terrain Scan Range 24 Terrain Scan Density 210 Jamming Range 16 Armor Coverage 1350 Resistance: EM 25 Utility Shielding 66 Weapon Shielding 90 Point Defense Rating 240 Weapon Cycling 30 Evasion (%) 50 Targeting Accuracy 24 Target Analysis 8 Core Analysis 8 Armor Integrity Analysis 50 Recoil Reduction 6 Matter Filtering 50 Energy Filtering 50 Particle Charging 25 Kinecelleration 50 Offensive Hacking 20 Defensive Hacking 11 Item Schematics ----------------- None Robot Schematics ------------------ None Fabricated ------------ Nothing Repaired ---------- Nothing Alien Tech Used ----------------- Integrated Dissipator Core Reset Matrix Integrated Thermoelectric Network Core Membrane Dimensional Node Initializer Integrity Redistributor Core Expander Core Cannon LRC Insulator LRC Matter Compressor Transdimensional Reconstructor Core Regenerator Subatomic Replicator Achievements -------------- None Challenges ------------ None Game ------ Seed ScanPhaseDerivative Manual? 0 Play Time 07:43:31 Cumulative 583.0 hours Start 2025.08.16 @ 13:13:48 End 2025.08.17 @ 19:22:12 Sessions 5 Manual Loads 0 Difficulty Rogue Special Mode None Game No. 246 Rogue 246 Adventurer 0 Explorer 0 Win Type - Total 27 Types 9/4/7/2/1/0/1/1/1/1 Lore% 92 Gallery% 87 Achievement% 81 Wizard Run 0 Options --------- Layout 0 ASCII 0 Keyboard 0 Movement Arrows Keybinds 0 Fullscreen 2 Font 18/SmallcapsGlow Map View 76x50 Zoom Use 0% Tactical HUD 1 Map Filters NONE Filters NONE Steam 1 RUN: c5565738-04d4-4528-b30d-0612fd3d6795